Cogmind - Beta 16 @@@ ROGUE MODE // 2025.11.24 @ 21:07:03 Player: ChromeKnight Result: Destroyed by Y-54 Guardian with Flak Gun Performance ------------- Evolutions (3) 1500 Regions Visited (11) 2200 Robots Destroyed (204) 1020 Value Destroyed (8364) 8364 Prototype IDs (13) 260 Alien Tech Used (0) 0 Bonus (4348) 4348 TOTAL SCORE: 17692 Bonus ------- High Alert Combat Kills 1802 Follower Combat Kills 506 Entered Garrisons 600 Used RIF Installer 1500 Friendly Fire -60 Cogmind --------- Core Integrity 0/700 Matter 155/300 Energy 100/100 System Corruption 25% Temperature Hot (220) Movement Treading (240) Ox2 Location -7/Garrison Parts ------- > --- POWER (1) -------- (None) > --- PROPULSION (4) --- Light Treads Light Treads > --- UTILITY (6) ------ Huge Storage Unit Hacking Suite Relay Coupler [Grunt] (1) > --- WEAPON (2) ------- Enhanced Autogun Molecular Scythe > --- INVENTORY (25) --- Enhanced Nuclear Core Gravmag System Gravmag System Gravmag System Improved Airjet Improved Airjet Improved Airjet Experimental Cooling System Medium Storage Unit Active Sensor Suite Improved Propulsion Shielding Improved Propulsion Shielding Hacking Suite System Shield System Shield Enhanced Autogun Enhanced Autogun Improved Grenade Launcher Remote Datajack Remote Datajack Remote Datajack Peak State ------------ > --- POWER ------------ F-cell Engine > --- PROPULSION ------- Light Treads Advanced Treads Medium Treads Medium Treads > --- UTILITY ---------- Huge Storage Unit Experimental Signal Interpreter Weapon Cycler Improved Medium Armor Plating Relay Coupler [Sentry] Relay Coupler [Specialist] > --- WEAPON ----------- Cooled Plasma Cannon Cooled Phase Cannon > --- INVENTORY -------- F-cell Engine Enhanced Fission Core Carbon-fiber Leg Experimental Cooling System Experimental Cooling System Experimental Cooling System Improved Sensor Array Improved Sensor Array Heavy Armor Plating Hardened Light Armor Plating Improved Medium Armor Plating Improved Medium Armor Plating Hacking Suite System Shield Relay Coupler [NC] Relay Coupler [NC] Relay Coupler [Grunt] Relay Coupler [Grunt] Relay Coupler [Demolisher] Cooled Phase Cannon Cooled Phase Cannon Improved Grenade Launcher Remote Datajack Molecular Scythe [Rating: 69] Favorites ----------- Power Light Nuclear Core Engine F-cell Engine Power Core Light Nuclear Core Propulsion Light Treads Treads Light Treads Leg Flexi-carbon Leg Wheel Wheel Hover Unit Improved Airjet Utility Medium Reactive Plating Device Heat Sink Storage Large Storage Unit Processor Transport Network Coupler Hackware Relay Coupler [Sentry] Protection Medium Reactive Plating Weapon EM Pulse Cannon Energy Gun EM Pulse Gun Energy Cannon EM Pulse Cannon Ballistic Gun Enhanced Autogun Ballistic Cannon Assault Cannon Launcher Grenade Launcher Special Weapon Remote Datajack Impact Weapon Heavy Mace Slashing Weapon Molecular Scythe Special Melee Weapon Improved Datajack Build | -11 -10 -10 -10 -9 -8 -8 -8 -8 -7 -7 -7 ------- Run | Yrd Mat Min Exi Min Mat Gar Mat Gar Fac Sto Gar Slots Evolved 6 | . . . . . 4 . . . 2 . . Power . | . . . . . . . . . . . . Propulsion 2 | . . . . . 1 . . . 1 . . Utility 4 | . . . . . 3 . . . 1 . . Weapon . | . . . . . . . . . . . . Parts Attached 134 | 6 2 1 . 2 14 17 8 11 43 24 6 Power 14 | 1 1 . . . 1 2 1 1 3 2 2 Engine 7 | 1 . . . . . . . 1 2 1 2 Core 7 | . 1 . . . 1 2 1 . 1 1 . Reactor . | . . . . . . . . . . . . Propulsion 36 | 2 . . . 1 3 3 3 4 9 9 2 Treads 29 | 2 . . . . 3 3 3 4 7 5 2 Leg 2 | . . . . 1 . . . . 1 . . Wheel 4 | . . . . . . . . . 1 3 . Hover 1 | . . . . . . . . . . 1 . Flight . | . . . . . . . . . . . . Utility 53 | 1 1 . . . 6 9 2 4 21 8 1 Device 12 | . . . . . 3 . 1 . 7 1 . Storage 5 | 1 . . . . 2 . . . 2 . . Processor 5 | . 1 . . . . . . . 4 . . Hackware 13 | . . . . . . 4 1 . 4 3 1 Protection 18 | . . . . . 1 5 . 4 4 4 . Artifact . | . . . . . . . . . . . . Weapon 31 | 2 . 1 . 1 4 3 2 2 10 5 1 Energy Gun 5 | 2 . . . 1 . . . . 2 . . Energy Cannon 10 | . . . . . 3 1 1 . 5 . . Ballistic Gun 6 | . . . . . . 1 1 1 . 2 1 Ballistic Cannon 2 | . . . . . . . . . 1 1 . Launcher 2 | . . 1 . . 1 . . . . . . Special Weapon 3 | . . . . . . 1 . . 1 1 . Impact Weapon 1 | . . . . . . . . 1 . . . Slashing Weapon 1 | . . . . . . . . . 1 . . Piercing Weapon . | . . . . . . . . . . . . Special Melee Weapon 1 | . . . . . . . . . . 1 . Unidentified Prototypes 13 | . . . . . . . . . 9 4 . Corrupted Parts 3 | . 1 . . . . 1 . . 1 . . System Corruption 18 | . 4 . . . . 8 . . 6 . . Parts Lost 56 | . . . . 2 2 8 2 10 10 12 10 Power 6 | . . . . . . 2 . 1 . 1 2 Propulsion 22 | . . . . 1 1 3 . 4 4 5 4 Utility 17 | . . . . . . 2 . 4 4 4 3 Weapon 11 | . . . . 1 1 1 2 1 2 2 1 Highest Loss Streak 7 | . . . . 1 1 2 1 7 4 7 4 To Critical Strikes . | . . . . . . . . . . . . Average Backups 14 | . 1 4 6 6 9 14 14 13 21 21 21 Power . | . . . 1 1 . . . . 1 1 1 Propulsion 1 | . . . 1 . . . . . 1 5 6 Utility 9 | . . 2 2 2 3 10 12 10 14 10 8 Weapon 2 | . . 1 1 1 3 3 1 2 3 2 3 Tool/Special . | . . . . . . . . . . . . Unused Backups 37 | . . . . . 1 11 . . 10 3 12 Power . | . . . . . . . . . . . . Propulsion 8 | . . . . . . . . . 2 1 5 Utility 15 | . . . . . . 5 . . 3 2 5 Weapon 12 | . . . . . 1 5 . . 5 . 1 Tool/Special 2 | . . . . . . 1 . . . . 1 Average Slot Usage (%) 92 | . 94 100 100 91 93 91 93 91 96 87 74 Engine 3 | . 10 . . . . . . 4 6 6 6 Core 5 | . 3 14 14 14 9 8 9 4 . . . Treads 23 | . 28 28 28 22 22 21 27 22 27 11 19 Wheel 1 | . . . . . . . . . 1 13 2 Device 4 | . . . . . 15 6 5 . 7 4 . Storage 9 | . 14 14 14 14 10 9 9 9 7 7 7 Processor 4 | . 9 14 14 14 7 . . . 4 7 4 Hackware 10 | . . . . . . 10 18 18 14 11 14 Protection 9 | . . . . . 7 17 12 17 9 5 2 Energy Gun 3 | . 28 14 14 8 1 . . . 1 . . Energy Cannon 6 | . . . . . 14 12 4 1 9 10 . Ballistic Gun 1 | . . . . . . . 5 4 . 3 11 Launcher 1 | . . 14 14 12 1 . . . . . . Special Weapon 1 | . . . . . . 4 1 . . . 1 Impact Weapon 1 | . . . . . . . . 8 1 . . Peak Build Rating 69 | 6 9 10 10 14 27 35 42 42 69 61 42 Average Rating 33 | 4 7 9 10 10 22 31 33 33 52 50 35 On Entrance 23 | . 6 9 10 10 14 26 35 42 31 59 41 Avg Prop Armor Cover (%) 11 | . . . . 7 6 . . . 17 9 19 Naked Turns . | . . . . . . . . . . . . Heaviest Build 150 | 11 13 15 15 16 57 86 75 76 150 133 99 Greatest Support 98 | 40 40 40 40 40 60 60 84 84 98 60 80 Greatest Overweight (x) 28 | . . . . . 7 3 1 22 12 12 28 Average Overweight (x) 1 | . . . . . . 1 . . 2 5 4 Largest Inventory Capacity 25 | 8 8 8 8 8 15 15 15 15 25 25 25 Average Capacity 17 | 6 8 8 8 8 12 15 15 15 24 25 25 Most Carried 25 | . 4 6 6 8 13 15 15 15 25 25 25 Average Carried 15 | . 1 4 6 6 9 14 14 13 22 23 23 Final Capacity 25 | 8 8 8 8 8 15 15 15 15 25 25 25 Final Carried 25 | . 4 6 6 5 13 15 15 15 25 24 23 Class Distribution -------------------- 45% | Mutant 31% | Bothacker-Mutant 20% | Scavenger-Mutant Dominant Class ---------------- Mutant | -10/Materials Mutant | -10/Mines Mutant | -10/Exiles Mutant | -9/Mines Scavenger-Mutant | -8/Materials Bothacker-Mutant | -8/Garrison Mutant | -8/Materials Mutant | -8/Garrison Bothacker-Mutant | -7/Factory Bothacker-Mutant | -7/Storage Scavenger-Mutant | -7/Garrison Resources | -11 -10 -10 -10 -9 -8 -8 -8 -8 -7 -7 -7 ----------- Run | Yrd Mat Min Exi Min Mat Gar Mat Gar Fac Sto Gar Matter Collected 3846 | 222 75 120 . 197 211 449 141 564 841 685 341 Remotely . | . . . . . . . . . . . . Salvage Created 7513 | . 477 132 . 330 1155 428 389 764 2351 1099 388 Parts 379 | . 32 14 . 25 51 33 10 29 109 56 20 Haulers Intercepted 7 | . 2 . . . . . . . 3 2 . Recyclers Shooed 6 | . . . . 1 . . 1 . 1 3 . Parts Field Recycled . | . . . . . . . . . . . . Retrieved Matter . | . . . . . . . . . . . . Parts Self-Destructed . | . . . . . . . . . . . . Prevented . | . . . . . . . . . . . . Parts Restored . | . . . . . . . . . . . . Kills | -11 -10 -10 -10 -9 -8 -8 -8 -8 -7 -7 -7 ------- Run | Yrd Mat Min Exi Min Mat Gar Mat Gar Fac Sto Gar Combat Hostiles Destroyed 162 | . 6 9 . 16 22 19 8 25 32 16 9 Melee 16 | . . . . . . . . 6 2 5 3 Guns 18 | . 6 1 . 4 . . 3 . . 2 2 Cannons 56 | . . . . . 13 6 4 2 22 9 . AOE 56 | . . 8 . 12 8 10 . 11 3 . 4 Classes Destroyed 18 | . 5 4 . 2 4 1 . . 2 . . Worker 6 | . . 1 . 1 . . . . 4 . . Builder 7 | . 1 . . . 1 . . . 4 1 . Tunneler 1 | . . . . 1 . . . . . . . Hauler 7 | . 2 . . . . . . . 3 2 . Recycler 7 | . . 1 . . 1 . . . 4 1 . Mechanic 5 | . 1 . . . . . . . 4 . . Operator 4 | . 2 . . . 1 . . . . 1 . Watcher 5 | . . . . . 4 . . . 1 . . Swarmer 46 | . . 6 . 7 7 12 . 7 3 . 4 Cutter 3 | . . . . . . . . . 3 . . Grunt 70 | . 6 2 . 8 10 4 7 10 15 7 1 Duelist 2 | . . . . 1 . . . . 1 . . Sentry 20 | . . . . . 2 . . 6 3 7 2 Specialist 1 | . . . . . . . . . 1 . . Hunter 5 | . . . . . 2 2 1 . . . . Programmer 12 | . . . . . . 1 . 2 5 2 2 Heavy 3 | . . . . . 1 . . . 2 . . Assembled 1 | . . 1 . . . . . . . . . Best Kill Streak 7 | . 3 5 . 5 4 5 3 6 6 7 5 Combat Bots Only 7 | . 2 5 . 4 4 5 3 6 6 7 5 Max Kills in Single Turn 4 | . 2 2 . 3 3 4 1 2 2 2 2 Gunslinging . | . . . . . . . . . . . . Exploded 4 | . . 2 . 3 3 4 . 2 1 . 2 Melee 1 | . . . . . . . . 1 1 1 1 Uniques/NPCs Destroyed . | . . . . . . . . . . . . Combat | -11 -10 -10 -10 -9 -8 -8 -8 -8 -7 -7 -7 -------- Run | Yrd Mat Min Exi Min Mat Gar Mat Gar Fac Sto Gar Hostile Shots Fired 1357 | . 28 14 . 33 63 103 49 188 299 395 185 Missed 421 | . 8 4 . 8 17 16 15 42 98 160 53 Hits 936 | . 20 10 . 25 46 87 34 146 201 235 132 Melee 16 | . . 1 . 5 . . . . 10 . . Projectile 920 | . 20 9 . 20 46 87 34 146 191 235 132 Critical Strikes 31 | . 1 . . 2 1 1 1 8 14 2 1 Actively Blocked 5 | . . . . . . . . . 5 . . Part Disruptions 2 | . . . . . . 2 . . . . . Damage Taken 11540 | . 289 129 . 430 592 1083 547 1978 3603 1702 1187 Core 1401 | . 79 31 . 121 40 178 38 213 276 246 179 Absorbed by Shields 378 | . . . . . . . . . . 378 . Redirected to Shielding 100 | . . . . . . . . . 100 . . Ignored by Resistances 487 | . . . . . 63 150 . 179 95 . . Regen/Repaired (Parts) 174 | . . . . . . . . . 174 . . Core Remaining (%) 40 | 100 . . . 7 . . . 14 . . . Volleys Fired 490 | . 46 11 . 22 55 74 37 26 121 66 32 Largest 2 | . 2 1 . 2 2 2 1 1 2 2 2 Hottest 126 | . 80 40 . 105 126 126 63 63 80 120 50 Shots Fired 772 | . 90 11 . 36 107 99 36 33 201 112 47 Gun 216 | . 90 2 . 22 . 3 14 6 9 33 37 Cannon 467 | . . . . . 105 82 20 14 174 72 . Launcher 50 | . . 9 . 14 2 6 . 13 3 . 3 Special 39 | . . . . . . 8 2 . 15 7 7 Kinetic 94 | . . . . . . 3 14 6 1 33 37 Thermal 311 | . 44 . . 22 . . . . 173 72 . Explosive 50 | . . 9 . 14 2 6 . 13 3 . 3 Electromagnetic 278 | . 46 2 . . 105 82 20 14 9 . . Robot Hit Streak 15 | . 10 10 . 15 10 13 6 8 12 15 10 Robot Miss Streak 7 | . 7 . . 3 4 2 2 2 7 3 4 Penetration Max . | . . . . . . . . . . . . Secondary Targets 1 | . 1 . . . . . . . . . . Max Gunslinging Chain 1 | . 1 . . . . . . . . . . Shots Hit Robots 515 | . 56 7 . 19 65 40 30 59 126 78 35 Core Hits 260 | . 22 17 . 24 38 21 12 28 50 32 16 Critical Kills 3 | . . . . . . . . 2 1 . . Critical Parts Destroyed 9 | . . . . . . . . 6 2 . 1 Critical Strikes 17 | . 1 . . . . 1 1 8 4 . 2 Meltdown 1 | . . . . . . . . . 1 . . Destroy 1 | . . . . . . . . . . . 1 Corrupt 4 | . 1 . . . . 1 1 . 1 . . Smash 10 | . . . . . . . . 8 2 . . Sever 1 | . . . . . . . . . . . 1 Melee Attacks 117 | . . . . . . . . 75 25 8 9 Impact 100 | . . . . . . . . 75 25 . . Slashing 17 | . . . . . . . . . . 8 9 Piercing . | . . . . . . . . . . . . Sneak Attacks 11 | . . . . . . . . 1 6 2 2 Combat Hostiles 2 | . . . . . . . . 1 . . 1 Follow-up Attacks . | . . . . . . . . . . . . Damage Inflicted 18901 | . 738 525 . 1249 2208 1556 589 2930 5085 2623 1398 Guns 2095 | . 661 24 . 218 . . 217 . 144 442 389 Cannons 8360 | . . . . . 1666 809 372 231 3578 1704 . Explosions 4844 | . 77 500 . 1027 530 747 . 1057 394 . 512 Melee 3490 | . . . . . . . . 1642 950 407 491 Ramming 112 | . . 1 . 4 12 . . . 19 70 6 Kinetic 1048 | . . . . . . . 217 . . 442 389 Thermal 6444 | . 331 . . 358 294 96 . 83 3578 1704 . Explosive 4154 | . . 500 . 887 236 651 . 974 394 . 512 Electromagnetic 3653 | . 407 24 . . 1666 809 372 231 144 . . Impact 2592 | . . . . . . . . 1642 950 . . Slashing 898 | . . . . . . . . . . 407 491 Piercing . | . . . . . . . . . . . . Highest Corruption 25 | . 6 6 6 6 . 11 12 18 23 23 25 Average Corruption 13 | . 3 6 6 6 . 4 11 15 15 23 24 Corruption Purged . | . . . . . . . . . . . . Corruption Blocked . | . . . . . . . . . . . . Effects 424 | . 9 25 3 22 . 46 17 80 102 68 52 Message Errors 96 | . 2 9 2 4 . 13 2 18 24 12 10 Matter Fused 122 | . 3 5 1 8 . 14 7 19 31 20 14 Heat Flow Errors 38 | . 2 3 . 3 . 3 1 7 8 6 5 Energy Discharges 40 | . . 1 . 3 . 3 3 6 10 9 5 Parts Rejected 7 | . . . . . . 1 . 2 2 2 . Parts Fused 3 | . . 1 . . . . . 2 . . . Data Loss (minor) 47 | . 2 4 . 1 . 4 1 10 11 6 8 Data Loss (major) 18 | . . 2 . 1 . 2 1 5 4 . 3 Misfires 21 | . . . . 1 . 5 . 7 5 1 2 Alerts 6 | . . . . . . . 1 3 . 1 1 Misdirections 8 | . . . . . . . . 1 1 4 2 Weapon Failures 18 | . . . . 1 . 1 1 . 6 7 2 Overload Shots 1 | . . . . . . . . . . 1 . Overflow Damage 1374 | . . 32 . 21 141 82 . 469 614 15 . Projectiles 184 | . . . . . 94 5 . . 70 15 . Explosions 292 | . . 32 . 21 47 77 . 70 45 . . Melee 898 | . . . . . . . . 399 499 . . Knockbacks 8 | . . . . . . . . 2 6 . . Impact 8 | . . . . . . . . 2 6 . . Kinetic . | . . . . . . . . . . . . Secondary . | . . . . . . . . . . . . Self-Inflicted Damage 772 | . 48 5 . 52 135 140 . 120 250 22 . Shots 20 | . 2 2 . 3 2 3 . 4 4 . . Rammed 20 | . 1 1 . 2 2 2 . . 4 8 . Targets Rammed 21 | . 1 1 . 2 2 2 . . 4 8 1 Kicked . | . . . . . . . . . . . . Crushed 1 | . . . . . . . . . . . 1 Highest Temperature 432 | . 370 250 . 432 273 365 317 278 278 367 271 Average Temperature 92 | . 87 100 . 120 77 107 142 82 75 82 73 Received Heat Transfer 3354 | . 153 27 . 132 144 315 324 702 720 537 300 Effects 9 | . 1 . . 2 . 1 2 . 2 1 . Shutdowns 2 | . 1 . . 1 . . . . . . . Energy Bleed 1 | . . . . . . . 1 . . . . Interference 2 | . . . . . . . . . 2 . . Matter Decay 2 | . . . . . . 1 . . . 1 . Short Circuit 2 | . . . . 1 . . 1 . . . . Siege Activations . | . . . . . . . . . . . . Martial Activations . | . . . . . . . . . . . . Shielding Activations . | . . . . . . . . . . . . Robots Disrupted 1 | . . . . . . . . 1 . . . Combat Hostiles 1 | . . . . . . . . 1 . . . Robots Corrupted 20 | . . . . . 2 3 1 5 9 . . Combat Hostiles 13 | . . . . . 1 3 1 5 3 . . Parts Fried 40 | . 1 . . . 12 3 2 8 14 . . Impact Corruptions 36 | . . . . . . . . 19 17 . . Robots Melted 2 | . . . . . . . . . 2 . . Combat Hostiles 2 | . . . . . . . . . 2 . . Parts Melted 21 | . 1 . . 1 1 . 1 . 11 6 . Heat Transferred 7943 | . 725 . . 646 300 150 . 100 4320 1702 . Parts Sabotaged . | . . . . . . . . . . . . Parts Stolen . | . . . . . . . . . . . . Parts Stripped . | . . . . . . . . . . . . Power Chain Reactions 10 | . 2 . . . 4 2 . 1 1 . . Alert | -11 -10 -10 -10 -9 -8 -8 -8 -8 -7 -7 -7 ------- Run | Yrd Mat Min Exi Min Mat Gar Mat Gar Fac Sto Gar Maximum Alert Level 5 | . . 1 . 1 2 5 3 5 4 2 2 Low Security (%) 21 | 100 100 97 . 83 58 . . . . . . Level 1 8 | . . 2 . 16 33 13 . . . . 29 Level 2 26 | . . . . . 7 11 . 11 42 100 70 Level 3 23 | . . . . . . 29 100 18 55 . . Level 4 14 | . . . . . . 39 . 47 1 . . Level 5 4 | . . . . . . 5 . 22 . . . High Security . | . . . . . . . . . . . . Max Security . | . . . . . . . . . . . . Peak Influence 1756 | . 69 216 . 240 496 1684 913 1756 1130 689 594 Initial 921 | . . 20 . . 74 315 820 518 921 513 382 Average 661 | . 19 63 . 85 179 984 852 1270 732 576 500 Influence Increases 7488 | . 239 280 . 495 825 1469 243 1338 1367 920 312 Destroy 0b10 Robot/C 3540 | . 120 160 . 320 440 440 180 500 660 500 220 Destroy 0b10 Robot/NC 225 | . 30 10 . 10 35 . 5 . 100 30 5 Destroy Leader 648 | . 44 30 . 50 108 30 10 20 180 146 30 Allied During Kill 166 | . . . . . . 11 2 . 3 148 2 Successful Hack 71 | . 6 . . 6 6 21 . . 26 6 . Select Force Hacks 50 | . . . . . . . . . 50 . . Disable Machine 495 | . 30 30 . 45 75 . 30 15 210 60 . Anti-Garrison Action 1200 | . . . . . . 750 . 450 . . . Destroy Structure 523 | . 9 50 . 64 71 97 1 83 123 15 10 Partial Spotted 15 | . . . . . . . . . . 15 . Lose Combat Pursuer 555 | . . . . . 90 120 15 270 15 . 45 Influence Decreases 6934 | . 186 333 . 303 532 270 1130 379 1994 1460 347 Entered New Map 3122 | . . 33 . . 118 170 864 279 835 616 207 Time Decay 2552 | . 186 300 . 283 404 . 206 . 709 464 . Lost Part 550 | . . . . 20 10 80 20 100 100 120 100 Lost Ally 410 | . . . . . . 20 40 . 50 260 40 Purge Threat 300 | . . . . . . . . . 300 . . Squads Dispatched 34 | . 3 . . . 3 . 1 . 17 10 . Investigation 3 | . 1 . . . 1 . . . 1 . . Extermination 7 | . . . . . . . . . 5 2 . Reinforcement 13 | . 2 . . . 2 . 1 . 6 2 . Assault 8 | . . . . . . . . . 5 3 . Garrison 3 | . . . . . . . . . . 3 . Intercept . | . . . . . . . . . . . . Searches Triggered . | . . . . . . . . . . . . Construction Impeded 2 | . . . . . . . . . 2 . . Haulers Reinforced . | . . . . . . . . . . . . Active Scanning Responses . | . . . . . . . . . . . . Cargo Convoy Interrupts 1 | . . . . . . . . . 1 . . Stealth | -11 -10 -10 -10 -9 -8 -8 -8 -8 -7 -7 -7 --------- Run | Yrd Mat Min Exi Min Mat Gar Mat Gar Fac Sto Gar Distress Signals 10 | . 2 . . 2 4 . 1 . 1 . . Communications Jammed . | . . . . . . . . . . . . Distress Signals . | . . . . . . . . . . . . Times Spotted 278 | . 11 9 . 15 41 26 14 38 65 43 16 Peak Tracking Total 12 | . 3 3 . 3 5 8 5 6 12 9 7 Tactical Retreats 26 | . . . . . 3 5 1 15 1 . 1 Traps | -11 -10 -10 -10 -9 -8 -8 -8 -8 -7 -7 -7 ------- Run | Yrd Mat Min Exi Min Mat Gar Mat Gar Fac Sto Gar Traps Triggered 24 | . 3 . . . 2 8 . 3 2 1 5 Indirectly . | . . . . . . . . . . . . Trap Hack Attempts . | . . . . . . . . . . . . Triggered . | . . . . . . . . . . . . Disarmed . | . . . . . . . . . . . . Reprogrammed . | . . . . . . . . . . . . Reused . | . . . . . . . . . . . . Traps Extracted . | . . . . . . . . . . . . Installed . | . . . . . . . . . . . . Triggered . | . . . . . . . . . . . . Machines | -11 -10 -10 -10 -9 -8 -8 -8 -8 -7 -7 -7 ---------- Run | Yrd Mat Min Exi Min Mat Gar Mat Gar Fac Sto Gar Machines Disabled 41 | . 2 2 . 3 5 5 2 4 14 4 . Max in Single Turn 4 | . 1 2 . 2 3 1 1 1 4 1 . Garrison Relay 8 | . . . . . . 5 . 3 . . . Machines Repaired . | . . . . . . . . . . . . Machines Dismantled . | . . . . . . . . . . . . Machines Sabotaged . | . . . . . . . . . . . . Overloaded Fab Kills 6 | . . . . . . . . . 6 . . Hacking | -11 -10 -10 -10 -9 -8 -8 -8 -8 -7 -7 -7 --------- Run | Yrd Mat Min Exi Min Mat Gar Mat Gar Fac Sto Gar Machines Accessed 29 | . 2 . . 1 6 3 1 3 8 4 1 Terminals 22 | . 2 . . 1 5 3 . 3 4 3 1 Fabricators 3 | . . . . . . . . . 3 . . Repair Stations . | . . . . . . . . . . . . Recycling Units . | . . . . . . . . . . . . Scanalyzers 1 | . . . . . . . . . 1 . . Garrison Access 3 | . . . . . 1 . 1 . . 1 . Total Hacks 65 | . 7 . . 2 12 5 1 6 23 7 2 Successful 19 | . 3 . . 1 3 2 1 . 7 2 . Failed 46 | . 4 . . 1 9 3 . 6 16 5 2 Catastrophic 11 | . . . . . 1 . . 4 5 . 1 Database Lockouts . | . . . . . . . . . . . . Manual 20 | . 7 . . 2 7 . . . 3 1 . Terminals 53 | . 7 . . 2 11 5 . 6 14 6 2 Fabricators 5 | . . . . . . . . . 5 . . Repair Stations . | . . . . . . . . . . . . Recycling Units . | . . . . . . . . . . . . Scanalyzers 4 | . . . . . . . . . 4 . . Garrison Access 3 | . . . . . 1 . 1 . . 1 . Terminal Hacks 10 | . . . . 1 2 2 . . 4 1 . Robot Analysis 1 | . . . . 1 . . . . . . . Open Door 2 | . . . . . . 1 . . . 1 . Branch Access Points 1 | . . . . . . . . . 1 . . Emergency Access Points 1 | . . . . . . 1 . . . . . Unreport Threat 2 | . . . . . . . . . 2 . . Locate Traps 1 | . . . . . . . . . 1 . . Zone Layout 2 | . . . . . 2 . . . . . . Fabricator Hacks 1 | . . . . . . . . . 1 . . Build 1 | . . . . . . . . . 1 . . Repair Station Hacks . | . . . . . . . . . . . . Recycling Unit Hacks . | . . . . . . . . . . . . Scanalyzer 1 | . . . . . . . . . 1 . . Retrieve Study 1 | . . . . . . . . . 1 . . Garrison Access Hacks 3 | . . . . . 1 . 1 . . 1 . Unlock Access 3 | . . . . . 1 . 1 . . 1 . Unauthorized Hacks 4 | . 3 . . . . . . . 1 . . Terminals 3 | . 3 . . . . . . . . . . Assimilate 1 | . 1 . . . . . . . . . . Operators 1 | . 1 . . . . . . . . . . Skim 1 | . 1 . . . . . . . . . . Fabricators 1 | . . . . . . . . . 1 . . Overload 1 | . . . . . . . . . 1 . . Repair Stations . | . . . . . . . . . . . . Recycling Units . | . . . . . . . . . . . . Scanalyzers . | . . . . . . . . . . . . Garrison Access . | . . . . . . . . . . . . Data Cores Recovered 1 | . . . . . 1 . . . . . . Used . | . . . . . . . . . . . . Hacking Detections 23 | . 2 . . 1 4 1 . 3 7 4 1 Full Trace Events 2 | . . . . . . . . 2 . . . Feedback Events . | . . . . . . . . . . . . Feedback Blocked . | . . . . . . . . . . . . Robot Schematics Acquired . | . . . . . . . . . . . . Robots Built . | . . . . . . . . . . . . Authchips . | . . . . . . . . . . . . Time . | . . . . . . . . . . . . Total Robot Build Rating . | . . . . . . . . . . . . Part Schematics Acquired . | . . . . . . . . . . . . Parts Built . | . . . . . . . . . . . . Authchips . | . . . . . . . . . . . . Time 117 | . . . . . . . . . 117 . . Total Part Build Rating . | . . . . . . . . . . . . Part Studies Acquired 1 | . . . . . . . . . 1 . . Parts Repaired . | . . . . . . . . . . . . Time . | . . . . . . . . . . . . Parts Recycled . | . . . . . . . . . . . . Recycled Matter . | . . . . . . . . . . . . Retrieved Matter . | . . . . . . . . . . . . Retrieved Components . | . . . . . . . . . . . . Parts Scanalyzed . | . . . . . . . . . . . . Part Schematics Acquired . | . . . . . . . . . . . . Parts Damaged . | . . . . . . . . . . . . Bothacking | -11 -10 -10 -10 -9 -8 -8 -8 -8 -7 -7 -7 ------------ Run | Yrd Mat Min Exi Min Mat Gar Mat Gar Fac Sto Gar Used RIF Installer 3 | . . . . . . 1 . 1 . . 1 Coupler Efficiency 1 | . . . . . . . . . . . 1 Command Fork 1 | . . . . . . . . 1 . . . Robots Hacked 21 | . . . . . . 3 2 . 7 4 5 Non-combat 6 | . . . . . . . . . 5 1 . Combat 15 | . . . . . . 3 2 . 2 3 5 Robot Hacks Applied 21 | . . . . . . 3 2 . 7 4 5 parse_system 1 | . . . . . . . . . . . 1 ignore_parts 2 | . . . . . . . . . 2 . . amplify_resonance 2 | . . . . . . . 1 . . 1 . reboot_system 3 | . . . . . . 1 . . . . 2 overwrite_iff 4 | . . . . . . . 1 . . 2 1 formatsys_low 1 | . . . . . . . . . 1 . . formatsys_high 8 | . . . . . . 2 . . 4 1 1 Relay Couplers Released 36 | . . . . . . 25 . 11 . . . Machine Destruction 33 | . . . . . . 22 . 11 . . . Programmers 3 | . . . . . . 3 . . . . . Attached 12 | . . . . . . 4 1 . 4 2 1 Fabnet Peak Effective % . | . . . . . . . . . . . . Robots Rewired 2 | . . . . . . 2 . . . . . Allies Hacked 1 | . . . . . . . . . . . 1 Hacks Repelled . | . . . . . . . . . . . . Allies | -11 -10 -10 -10 -9 -8 -8 -8 -8 -7 -7 -7 -------- Run | Yrd Mat Min Exi Min Mat Gar Mat Gar Fac Sto Gar Total Allies 30 | . . . . . . 4 1 . 7 16 2 Largest Group 12 | . . . . . . 4 2 . 2 12 1 Highest-Rated Group 235 | . . . . . . 100 70 . 43 235 16 Highest-Rated Ally 43 | . . . . . . 39 39 . 43 32 16 Total Orders 1 | . . . . . . . . . 1 . . AID 1 | . . . . . . . . . 1 . . Ally Attacks 161 | . . . . . . 13 13 . 17 110 8 Total Damage 2679 | . . . . . . 227 418 . 369 1563 102 Kills 20 | . . . . . . 3 2 . 2 11 2 Allies Corrupted 2 | . . . . . . 2 . . . . . Allies Melted . | . . . . . . . . . . . . Intel | -11 -10 -10 -10 -9 -8 -8 -8 -8 -7 -7 -7 ------- Run | Yrd Mat Min Exi Min Mat Gar Mat Gar Fac Sto Gar Active Infowar (turns) 5126 | . 486 959 79 672 1387 16 . . 1527 . . Sensors 1527 | . . . . . . . . . 1527 . . Structural 1140 | . . . . . 1124 16 . . . . . T.N.C. 3384 | . 486 959 79 672 1188 . . . . . . Robot Analysis Total 1 | . . . . 1 . . . . . . . Derelict Logs Recovered 4 | . . 2 . 2 . . . . . . . Drone Launches . | . . . . . . . . . . . . Drone Recoveries . | . . . . . . . . . . . . Exploration | -11 -10 -10 -10 -9 -8 -8 -8 -8 -7 -7 -7 ------------- Run | Yrd Mat Min Exi Min Mat Gar Mat Gar Fac Sto Gar Turns Passed 14199 | 54 735 959 79 672 1387 2538 429 2068 3178 1168 932 Spaces Moved 5633 | 36 368 436 50 349 662 897 176 767 1095 480 317 Core 15 | 10 . . . . 1 . . 3 . . 1 Treads 4871 | 26 368 436 50 349 651 897 176 764 934 22 198 Legs 10 | . . . . . 10 . . . . . . Wheels 737 | . . . . . . . . . 161 458 118 Hover . | . . . . . . . . . . . . Flight . | . . . . . . . . . . . . Fastest Speed 50 | 50 160 160 160 160 160 160 160 160 210 131 200 Average Speed 202 | 129 160 160 160 160 172 249 179 215 235 168 228 Slowest Speed 1450 | 160 160 160 160 160 400 400 240 1150 345 400 1450 Overloaded Moves . | . . . . . . . . . . . . Propulsion Burnouts . | . . . . . . . . . . . . Robots Hopped . | . . . . . . . . . . . . Potential Cave-ins . | . . . . . . . . . . . . Cave-ins Triggered 1 | . . . . . . . . . 1 . . Exploration Rate (%) 50 | 3 59 85 10 68 63 92 19 63 33 61 46 Regions Visited 11 Branch Regions 4 Pre-discovered Areas 2 | . . 1 . 1 . . . . . . . Known Exits Taken 5 | . . . . 1 1 . 1 . 1 1 . Unknown Exits Taken 4 | 1 1 1 1 . . . . . . . . Scrap Searched 1 | . . 1 . . . . . . . . . Spaces Dug 17 | . . . . . . . . 6 8 3 . Terrain Destroyed 515 | . 8 71 . 89 70 15 . 108 134 14 6 Melee 8 | . . . . . . . . 6 2 . . Projectile 68 | . . . . . . . . . 54 14 . AOE 439 | . 8 71 . 89 70 15 . 102 78 . 6 Terrain Rammed . | . . . . . . . . . . . . Walls Destroyed . | . . . . . . . . . . . . Machines Disabled . | . . . . . . . . . . . . Actions | -11 -10 -10 -10 -9 -8 -8 -8 -8 -7 -7 -7 --------- Run | Yrd Mat Min Exi Min Mat Gar Mat Gar Fac Sto Gar Total 7481 | 41 423 685 49 425 797 1118 256 1025 1470 720 472 Wait 782 | . 2 235 . 45 42 75 26 118 89 75 75 Move 5622 | 35 367 435 49 348 661 895 175 765 1095 480 317 Hop . | . . . . . . . . . . . . Pick Up 89 | . 4 2 . 2 13 18 2 3 32 11 2 Fast Attach 98 | 6 2 . . 1 9 7 3 8 31 25 6 Attach 37 | . . . . 3 4 4 3 5 10 5 3 Detach 15 | . . . . . . . 1 2 8 4 . Swap 59 | . . 1 . 1 3 10 3 4 19 6 12 Drop 98 | . 1 . . 1 8 18 6 . 37 23 4 Fire 490 | . 46 11 . 22 55 74 37 26 121 66 32 Melee 117 | . . . . . . . . 75 25 8 9 Ram 6 | . . . . . . . . . 1 4 1 Kick . | . . . . . . . . . . . . Crush 14 | . 1 1 . 2 2 2 . . 2 3 1 Escape Stasis 38 | . . . . . . 14 . 6 . 8 10 Rewire 16 | . . . . . . 1 . 13 . 2 . Trap . | . . . . . . . . . . . . Miscellaneous . | . . . . . . . . . . . . Route ------- -11/Scrapyard -10/Materials (discovered 2 exits: [*Mat] / [*Min]) -10/Mines (discovered 2 exits: [*Mat] / [*Exi]) -10/Exiles -9/Mines (discovered 2 exits: *Mat x2) -8/Materials (discovered 3 exits: *Fac x2 / Gar) -8/Garrison (discovered 3 exits: *Mat x3) -8/Materials -8/Garrison (discovered 2 exits: *Fac x2) -7/Factory (discovered 4 exits: [*Fac] / *Sto / Low x2) -7/Storage -7/Garrison (discovered 1 exit: [*Fac]) History --------- Turn | Location | Event 2 | -11/Scrapyard | Met Revision 17 8 | -11/Scrapyard | Discovered new exit (range 15) 55 | -11/Scrapyard | Entered Materials 303 | -10/Materials | Build established: Mutant 428 | -10/Materials | Discovered new exit (range 16) 610 | -10/Materials | Discovered new exit (range 9) 790 | -10/Materials | Entered Mines 844 | -10/Mines | Learned Materials security intel 860 | -10/Mines | Deemed a non-threat by the Exiles lab entrance 862 | -10/Mines | Discovered new exit (range 5) 986 | -10/Mines | Learned location of Recycling (-7) 1176 | -10/Mines | Discovered new exit (range 5) 1289 | -10/Mines | Assembled infested the area 1294 | -10/Mines | Assisted by a Guerilla fighting off Assembled 1749 | -10/Mines | Entered Exiles 1789 | -10/Exiles | Met 8R-AWN 1807 | -10/Exiles | Discovered new exit (range 14) 1828 | -10/Exiles | Entered Mines 1829 | -9/Mines | Met a Derelict bent on vengeance 1893 | -9/Mines | Core integrity fell below 50% 2018 | -9/Mines | Discovered new exit (range 16) 2176 | -9/Mines | Received a Rocket Launcher from a helpful Derelict 2242 | -9/Mines | Core integrity fell below 20% 2352 | -9/Mines | Learned location of Storage (-7) 2428 | -9/Mines | Identified exit to Materials 2500 | -9/Mines | Entered Materials 2500 | -8/Materials | Evolved 4 slots: Propulsion x1, Utility x3 3022 | -8/Materials | Build established: Scavenger-Mutant 3171 | -8/Materials | Discovered new exit (range 10) 3646 | -8/Materials | Discovered new exit (range 16) 3885 | -8/Materials | Identified exit to Garrison 3887 | -8/Materials | Entered Garrison 3977 | -8/Garrison | Triggered checkpoint 3977 | -8/Garrison | Garrison Relay disabled 4453 | -8/Garrison | Triggered checkpoint 4525 | -8/Garrison | Triggered checkpoint 4650 | -8/Garrison | Discovered new exit (range 10) 4682 | -8/Garrison | Installed Relay Interface Framework 4721 | -8/Garrison | Build established: Mutant 4731 | -8/Garrison | Triggered checkpoint 4842 | -8/Garrison | Garrison Relay disabled 5164 | -8/Garrison | Build established: Bothacker-Mutant 5273 | -8/Garrison | Garrison Relay disabled 5332 | -8/Garrison | Discovered new exit (range 10) 5559 | -8/Garrison | Discovered new exit (range 10) 5651 | -8/Garrison | Garrison Relay disabled 5683 | -8/Garrison | Triggered checkpoint 5773 | -8/Garrison | Garrison Relay disabled 6021 | -8/Garrison | System corruption reached 10% 6425 | -8/Garrison | Entered Materials 6425 | -8/Materials | Accompanied by 2 allies 6847 | -8/Materials | Identified exit to Garrison 6854 | -8/Materials | Entered Garrison 6960 | -8/Garrison | Triggered checkpoint 6971 | -8/Garrison | Core integrity fell below 50% 6990 | -8/Garrison | Build established: Mutant 7011 | -8/Garrison | Garrison Relay disabled 7230 | -8/Garrison | Triggered checkpoint 7354 | -8/Garrison | Triggered checkpoint 7482 | -8/Garrison | Garrison Relay disabled 7612 | -8/Garrison | Discovered new exit (range 10) 7803 | -8/Garrison | Core integrity fell below 20% 7833 | -8/Garrison | Lost 7 parts (1p3n2u1w) 7918 | -8/Garrison | Expanded RIF knowledge: Command Fork 8326 | -8/Garrison | Triggered checkpoint 8463 | -8/Garrison | Discovered new exit (range 11) 8512 | -8/Garrison | Triggered checkpoint 8554 | -8/Garrison | Garrison Relay disabled 8922 | -8/Garrison | Entered Factory 8922 | -7/Factory | Evolved 2 slots: Propulsion x1, Utility x1 9862 | -7/Factory | Cargo convoy interrupted 9916 | -7/Factory | P-60 Hacker assimilated allied Commando 4a 9955 | -7/Factory | Build established: Bothacker-Mutant 9959 | -7/Factory | System corruption reached 10% 9962 | -7/Factory | Lost 3 allies 10020 | -7/Factory | Found Prototype Processor 10020 | -7/Factory | Identified Exp. Signal Interpreter 10522 | -7/Factory | First assault squad dispatched 11003 | -7/Factory | Crushed by falling debris 11158 | -7/Factory | Discovered new exit (range 7) 11351 | -7/Factory | Identified exit to Storage 11351 | -7/Factory | Identified exit to Lower Caves 11631 | -7/Factory | Lost 4 parts (2n1u1w) 12094 | -7/Factory | Found Prototype Device 12100 | -7/Factory | Entered Storage 12435 | -7/Storage | Met a pair of Derelict thieves 12493 | -7/Storage | Assisted by bots powering up and referring to "LRC-V3" 12596 | -7/Storage | Lost 4 allies 12794 | -7/Storage | Build established: Commander-Mutant 12846 | -7/Storage | Garrison activated, responded to threat 12895 | -7/Storage | Core integrity fell below 50% 12900 | -7/Storage | First assault squad dispatched 12904 | -7/Storage | Lost 6 allies 12946 | -7/Storage | Lost 7 parts (3n2u2w) 12973 | -7/Storage | Destroyed 7 combat bots 13244 | -7/Storage | Identified exit to Garrison 13268 | -7/Storage | Entered Garrison 13304 | -7/Garrison | Expanded RIF knowledge: Coupler Efficiency 13322 | -7/Garrison | Build established: Scavenger-Mutant 13474 | -7/Garrison | Triggered checkpoint 13776 | -7/Garrison | Triggered checkpoint 13801 | -7/Garrison | Core integrity fell below 20% 13831 | -7/Garrison | Lost 4 parts (4n) 13867 | -7/Garrison | Lost 3 parts (1p1u1w) 13988 | -7/Garrison | Discovered new exit (range 10) 14091 | -7/Garrison | Build established: Mutant 14182 | -7/Garrison | Triggered checkpoint 14200 | -7/Garrison | Destroyed by Y-54 Guardian with Flak Gun Last Messages --------------- 14067_ Field strength at 70. 14070_ Field strength at 40. 14071_ Field strength at 10. 14072_ Stasis field depleted. 14083_ System corrupted: FCS attempts to trigger Enh. Autogun. 14083_ System corrupted: Enh. Autogun misfires. 14102_ :X7,I=FBGJWB%ZYULAO9LE